bitfinex-derivatives/quotes_SOLF0:USTF0_20241107
["timestamp","ask_amount","ask_price","bid_price","bid_amount"]
[1730950094872,2.6234,190.47,190.39,20.1776442]
[1730950095175,20.1776442,190.53,190.39,20.1776442]
[1730950095376,2.6238,190.44,190.37,1.3148]
[1730950096073,3.8082,190.56,190.42,20.1776442]
[1730950096579,2.6228,190.51,190.43,2.6238]
[1730950096876,3.8082,190.56,190.43,2.6238]
[1730950097269,2.6226,190.53,190.43,2.6238]
[1730950097470,26.7176442,190.59,190.46,20.1776442]
[1730950097471,20.1776442,190.59,190.46,20.1776442]
[1730950097773,1.3141,190.59,190.49,20.1776442]
[1730950097970,9.44641276,190.68,190.52,20.1776442]
[1730950098171,9.44641276,190.68,190.47,1.229]
[1730950098172,1.3141,190.67,190.47,1.229]
[1730950098374,21.4917442,190.67,190.51,20.1776442]
[1730950099174,2.6215,190.61,190.54,20.1776442]
[1730950099483,1.3141,190.67,190.58,20.1776442]
[1730950099672,2.6211,190.63,190.58,20.1776442]
[1730950100261,1.3141,190.67,190.54,2.6223]
[1730950100262,2.6218,190.59,190.54,20.1776442]
[1730950100463,2.6218,190.59,190.51,20.1776442]
[1730950101071,2.622,190.57,190.51,20.1776442]
[1730950101263,21.4917442,190.67,190.48,20.1776442]
[1730950101974,2.6222,190.55,190.48,20.1776442]
[1730950102462,2.6218,190.59,190.51,20.1776442]
[1730950103269,1.3141,190.67,190.51,20.1776442]
[1730950105668,2.6221,190.57,190.51,20.1776442]
[1730950106272,2.6221,190.57,190.5,0.25436]
[1730950106467,20.1776442,190.65,190.5,0.25436]
[1730950107276,20.1776442,190.61,190.5,0.25436]
[1730950107775,20.1776442,190.58,190.5,0.25436]
[1730950107979,3.7935,190.57,190.5,0.25436]
[1730950108179,2.6228,190.52,190.5,0.25436]
[1730950109776,2.6228,190.51,190.5,0.25436]
[1730950111469,2.6222,190.55,190.5,0.25436]
[1730950111674,3.7935,190.57,190.5,0.25436]
[1730950112068,2.6224,190.54,190.5,0.25436]
[1730950112274,3.7935,190.57,190.5,0.25436]
[1730950112678,2.6228,190.51,190.5,0.25436]
[1730950115378,2.6228,190.51,190.38,2.1186]
[1730950115379,2.6235,190.46,190.4,12.60065115]
[1730950115883,2.6235,190.46,190.4,12.78572115]
[1730950116378,12.60065115,190.51,190.4,12.78572115]
[1730950116576,12.60065115,190.54,190.42,12.60065115]
[1730950117178,12.60065115,190.54,190.44,2.6237]
[1730950117979,2.6229,190.51,190.44,2.6237]
[1730950118675,12.60065115,190.54,190.44,2.6237]
[1730950118676,2.6229,190.5,190.44,2.6237]
[1730950118979,12.60065115,190.54,190.43,12.60065115]
[1730950119682,12.60065115,190.54,190.44,2.6237]
[1730950119880,12.60065115,190.56,190.45,12.60065115]
[1730950120080,2.6225,190.53,190.45,12.60065115]
[1730950120588,2.6225,190.53,190.46,2.6233]
[1730950121380,2.6227,190.52,190.45,12.60065115]
[1730950121573,16.39415115,190.57,190.45,15.22425115]
[1730950122280,16.39415115,190.57,190.45,12.60065115]
[1730950122488,16.39415115,190.57,190.47,2.6233]
[1730950122676,3.7935,190.57,190.48,12.60065115]
[1730950123683,12.60065115,190.63,190.51,12.60065115]
[1730950123891,15.15785115,190.63,190.51,12.60065115]
[1730950124681,12.60065115,190.6,190.51,12.60065115]
[1730950124883,12.60065115,190.6,190.46,12.60065115]
[1730950125084,1.2858,190.59,190.46,12.60065115]
[1730950125273,2.6225,190.53,190.47,12.60065115]
[1730950125475,12.60065115,190.58,190.47,12.60065115]
[1730950126883,2.6227,190.52,190.47,12.60065115]
[1730950127286,12.60065115,190.58,190.47,12.60065115]
[1730950127481,2.6225,190.54,190.47,15.22395115]
[1730950127783,12.60065115,190.58,190.47,15.22395115]
[1730950127985,2.6225,190.54,190.47,15.22395115]
[1730950128894,2.6225,190.53,190.47,15.22395115]
[1730950129497,12.60065115,190.55,190.41,0.4479]
[1730950129786,12.60065115,190.55,190.42,12.60065115]
[1730950129991,1.1938,190.54,190.42,12.60065115]
[1730950130187,2.4044,190.54,190.42,12.60065115]
[1730950130693,12.60065115,190.53,190.42,12.60065115]
[1730950130892,12.60065115,190.53,190.4,12.60065115]
[1730950131092,12.60065115,190.49,190.37,12.60065115]
[1730950131986,2.6235,190.46,190.38,2.6245]
[1730950132183,12.60065115,190.49,190.38,2.6245]
[1730950132690,2.6237,190.45,190.38,2.6245]
[1730950133095,2.6239,190.44,190.37,12.60065115]
[1730950133291,12.60065115,190.46,190.35,12.60065115]
[1730950133495,2.4199,190.45,190.35,12.60065115]
[1730950133888,12.60065115,190.44,190.32,12.60065115]
[1730950134398,12.60065115,190.41,190.29,12.60065115]
[1730950134697,2.6249,190.36,190.29,15.22645115]
[1730950134887,2.6249,190.36,190.29,12.60065115]
[1730950135690,2.4199,190.45,190.28,2.6259]
[1730950135691,12.60065115,190.38,190.28,2.6259]
[1730950135897,2.625,190.35,190.28,2.6259]
[1730950136293,2.6253,190.33,190.27,12.60065115]
[1730950136593,12.60065115,190.36,190.21,12.60065115]
[1730950136796,12.60065115,190.36,190.22,2.6268]
[1730950136797,2.6114,190.35,190.22,2.6268]
[1730950137097,2.6114,190.35,190.24,12.60065115]
[1730950137292,2.6114,190.35,190.26,15.22685115]
[1730950138895,2.6253,190.33,190.26,15.22685115]
[1730950139195,2.6114,190.35,190.26,12.60065115]
[1730950139595,2.6114,190.35,190.28,2.6259]
[1730950139986,2.6114,190.35,190.26,12.60065115]
[1730950140191,6.7,190.38,190.29,2.6258]
[1730950140699,2.625,190.35,190.28,2.6258]
[1730950140994,9.2235,190.39,190.26,12.60065115]
[1730950141199,2.5235,190.39,190.29,12.60065115]
[1730950141400,2.6246,190.38,190.31,2.6254]
[1730950141998,5.1479,190.39,190.33,2.6252]
[1730950142393,2.5235,190.39,190.33,2.6252]
[1730950142792,2.6246,190.38,190.31,2.6254]
[1730950142997,2.5235,190.39,190.2,6.7]
[1730950143196,2.5235,190.39,190.27,12.60065115]
[1730950143398,2.5235,190.39,190.28,2.6259]
[1730950143399,2.6251,190.34,190.28,2.6259]
[1730950143899,12.60065115,190.37,190.27,12.60065115]
[1730950144507,12.60065115,190.37,190.2,19.30065115]
[1730950144508,12.60065115,190.37,190.25,2.6263]
[1730950144700,12.60065115,190.34,190.21,12.60065115]
[1730950144904,12.60065115,190.32,190.21,12.60065115]
[1730950145998,2.6262,190.27,190.21,15.22745115]
[1730950146802,2.6262,190.27,190.19,12.60065115]
[1730950147196,6.42,190.31,190.19,12.60065115]
[1730950147392,2.626,190.28,190.23,2.6266]
[1730950147893,6.42,190.31,190.26,2.6261]
[1730950148093,6.42,190.31,190.24,12.60065115]
[1730950148691,6.42,190.31,190.21,12.60065115]
[1730950148894,6.42,190.31,190.19,12.60065115]
[1730950149090,12.60065115,190.29,190.19,12.60065115]
[1730950149797,2.6265,190.25,190.19,15.22775115]
[1730950150704,2.6265,190.25,190.17,0.8971]
[1730950150705,2.6265,190.24,190.18,2.6273]
[1730950151103,12.60065115,190.27,190.11,0.8983]
[1730950151401,2.6273,190.19,190.14,2.6278]
[1730950151798,2.627,190.21,190.16,2.6276]
[1730950152009,12.60065115,190.29,190.17,12.60065115]
[1730950152204,6.42,190.28,190.17,12.60065115]
[1730950152401,2.4002,190.3,190.19,12.60065115]
[1730950152600,8.8202,190.3,190.19,12.60065115]
[1730950153409,2.6261,190.27,190.21,2.6269]
[1730950154507,2.4002,190.3,190.19,12.60065115]
[1730950154710,2.4002,190.3,190.22,15.22735115]
[1730950155399,2.4002,190.3,190.22,12.60065115]
[1730950156511,5.026,190.3,190.24,2.6265]
[1730950156709,2.4002,190.3,190.22,12.60065115]
[1730950157214,5.0259,190.3,190.24,2.6265]
[1730950157609,2.6256,190.31,190.25,2.6264]
[1730950157803,6.12,190.32,190.25,2.6264]
[1730950158718,2.4382,190.35,190.25,12.60065115]
[1730950159022,15.03885115,190.35,190.25,2.6263]
[1730950159416,15.03885115,190.35,190.22,12.60065115]
[1730950159617,15.03885115,190.35,190.24,2.6265]
[1730950160319,2.6256,190.31,190.22,12.60065115]
[1730950160523,15.03885115,190.35,190.27,2.6261]
[1730950160720,2.4382,190.35,190.27,2.6261]
[1730950160922,2.4382,190.35,190.28,12.60065115]
[1730950160923,1.2106,190.35,190.28,12.60065115]
[1730950161126,1.2137,190.38,190.3,2.6257]
[1730950161828,2.6248,190.37,190.28,12.60065115]
[1730950162029,0.2244,190.39,190.3,12.60065115]
[1730950162422,0.2244,190.39,190.36,2.6247]
[1730950162624,0.2244,190.39,190.35,12.60065115]
[1730950162828,12.60065115,190.49,190.38,12.60065115]
[1730950163528,2.6234,190.47,190.38,12.60065115]
[1730950164126,12.60065115,190.49,190.38,12.60065115]
[1730950164522,2.6232,190.48,190.42,2.6239]
[1730950164728,2.5391,190.5,190.42,12.60065115]
[1730950165128,2.6225,190.53,190.46,2.6234]
[1730950165332,12.60065115,190.54,190.46,2.6234]
[1730950165525,2.6228,190.52,190.44,2.6236]
[1730950165720,2.6228,190.52,190.42,12.60065115]
[1730950165721,12.60065115,190.54,190.42,12.60065115]
[1730950165925,12.60065115,190.54,190.33,1.3485]
[1730950165926,3.8013,190.59,190.45,12.60065115]
[1730950166129,2.6218,190.58,190.5,2.6228]
[1730950166333,3.8013,190.59,190.48,12.60065115]
[1730950166531,41.53819458,190.64,190.41,6.12]
[1730950166532,40.53819458,190.64,190.53,12.60065115]
[1730950167231,43.15929458,190.64,190.55,2.6222]
[1730950167434,43.15929458,190.64,190.52,20.15782774]
[1730950167632,40.53819458,190.64,190.52,20.15782774]
[1730950167833,1.2654,190.66,190.51,2.6228]
[1730950167834,2.6216,190.6,190.51,2.6228]
[1730950168332,2.6222,190.56,190.47,2.6232]
[1730950168727,20.15782774,190.62,190.47,2.6232]
[1730950170632,20.15782774,190.62,190.45,20.15782774]
[1730950170835,20.15782774,190.62,190.5,2.6229]
[1730950171638,2.622,190.57,190.5,2.6229]
[1730950172133,1.2895,190.65,190.52,2.6226]
[1730950172134,2.6216,190.6,190.52,2.6226]
[1730950173040,2.6216,190.6,190.53,2.6225]
[1730950173343,7.1295,190.65,190.57,2.622]
[1730950173537,7.1295,190.65,190.53,20.15782774]
[1730950173732,1.2895,190.65,190.53,20.15782774]
[1730950174132,1.2654,190.66,190.53,20.15782774]
[1730950174441,2.6209,190.65,190.56,2.622]
[1730950174646,2.6209,190.65,190.53,20.15782774]
[1730950174837,1.2654,190.66,190.53,20.15782774]
[1730950175544,2.6212,190.63,190.56,2.6221]
[1730950175930,2.6213,190.62,190.55,2.6222]
[1730950176739,2.6211,190.63,190.56,2.622]
[1730950177239,2.6211,190.63,190.53,20.15782774]
[1730950177443,1.2654,190.66,190.57,2.6219]
[1730950178345,1.2654,190.66,190.53,20.15782774]
[1730950179043,2.6211,190.63,190.57,2.6219]
[1730950180949,2.6218,190.59,190.52,2.6225]
[1730950181144,20.15782774,190.65,190.52,2.6225]
[1730950181541,20.15782774,190.65,190.49,20.15782774]
[1730950181734,20.15782774,190.65,190.52,2.6226]
[1730950182142,20.15782774,190.65,190.49,20.15782774]
[1730950182343,2.6216,190.6,190.54,2.6224]
[1730950183446,20.15782774,190.65,190.48,0.21788]
[1730950183752,1.2654,190.66,190.52,20.15782774]
[1730950184136,2.6216,190.6,190.54,2.6223]
[1730950186136,1.2654,190.66,190.54,2.6223]
[1730950186353,2.6218,190.59,190.53,2.6224]
[1730950186544,1.2654,190.66,190.53,2.6224]
[1730950187250,20.15782774,190.65,190.49,20.15782774]
[1730950187442,12.5919427,190.62,190.5,12.5919427]
[1730950187642,3.9511956,190.61,190.5,12.5919427]
[1730950187951,3.9511956,190.61,190.48,0.21788]
[1730950187952,12.5919427,190.59,190.48,0.21788]
[1730950188344,1.2154,190.58,190.48,0.21788]
[1730950188746,1.2722,190.57,190.48,0.21788]
[1730950189549,2.6223,190.55,190.5,2.6228]
[1730950189751,1.2722,190.57,190.48,0.21788]
[1730950190248,1.2722,190.57,190.49,2.6229]
[1730950190249,2.6225,190.54,190.49,2.6229]
[1730950190853,2.6225,190.54,190.49,15.2148427]
[1730950191558,2.6225,190.54,190.49,12.5919427]
[1730950192848,2.6225,190.54,190.49,15.2149427]
[1730950193656,2.6225,190.54,190.5,2.6229]
[1730950194249,2.6225,190.54,190.43,1.3451]
[1730950194250,1.2722,190.57,190.52,12.5919427]
[1730950195859,1.2722,190.57,190.52,15.2145427]
[1730950195860,3.8942,190.57,190.52,15.2145427]
[1730950197662,1.2154,190.58,190.52,12.5919427]
[1730950197853,6.8327,190.69,190.57,12.5919427]
[1730950198059,1.2511,190.68,190.51,1.2033]
[1730950198254,2.6217,190.6,190.55,12.5919427]
[1730950198459,2.6217,190.6,190.55,10.07594309]
[1730950198965,2.6217,190.59,190.55,10.07594309]
[1730950199160,10.07594309,190.66,190.55,10.07594309]
[1730950199363,2.6213,190.63,190.57,10.07594309]
[1730950200066,2.6213,190.63,190.57,12.69784309]
[1730950200451,11.32704309,190.68,190.57,12.69784309]
[1730950200652,2.6213,190.62,190.57,12.69784309]
[1730950202358,11.32704309,190.68,190.57,10.07594309]
[1730950204066,2.6211,190.64,190.58,2.6217]
[1730950204269,11.32704309,190.68,190.57,10.07594309]
[1730950204453,11.32704309,190.68,190.55,12.69814309]
[1730950204454,2.6214,190.61,190.55,12.69814309]
[1730950204658,5.3,190.65,190.55,10.07594309]
[1730950205163,2.6213,190.62,190.55,10.07594309]
[1730950205371,5.3,190.65,190.55,10.07594309]
[1730950205770,2.6217,190.6,190.55,10.07594309]
[1730950206067,10.07594309,190.66,190.56,2.622]
[1730950206272,15.37594309,190.66,190.55,10.07594309]
[1730950206670,10.07594309,190.66,190.55,10.07594309]
[1730950207671,2.6213,190.62,190.56,2.622]
[1730950208870,12.69674309,190.66,190.55,10.07594309]
[1730950209075,1.2511,190.68,190.6,10.07594309]
[1730950209465,11.32704309,190.68,190.57,10.07594309]
[1730950210176,2.6208,190.66,190.59,2.6216]
[1730950210365,2.6208,190.66,190.57,10.07594309]
[1730950211167,2.6208,190.66,190.6,2.6215]
[1730950212073,11.32704309,190.68,190.57,10.07594309]
[1730950212074,2.6211,190.63,190.57,12.69784309]
[1730950212368,10.07594309,190.65,190.54,10.07594309]
[1730950212766,11.32704309,190.68,190.54,10.07594309]
[1730950212968,11.32704309,190.68,190.57,10.07594309]
[1730950213172,2.4441,190.69,190.59,2.6217]
[1730950213173,2.6208,190.66,190.59,2.6217]
[1730950213377,2.4441,190.69,190.59,10.07594309]
[1730950214187,2.4441,190.69,190.63,2.6211]
[1730950214679,2.6207,190.66,190.62,2.6212]
[1730950214870,2.4441,190.69,190.59,10.07594309]
[1730950215480,12.52004309,190.69,190.59,10.07594309]
[1730950216367,15.14044309,190.69,190.62,2.6213]
[1730950217970,2.6207,190.67,190.6,2.6215]
[1730950218274,2.6207,190.67,190.55,10.07594309]
[1730950218275,10.07594309,190.67,190.55,10.07594309]
[1730950218574,10.07594309,190.67,190.43,5.2476]
[1730950218575,10.07594309,190.64,190.54,10.07594309]
[1730950218779,1.3086,190.66,190.54,10.07594309]
[1730950218985,5.04,190.65,190.54,10.07594309]
[1730950219276,5.04,190.65,190.53,10.07594309]
[1730950219277,2.6213,190.62,190.53,10.07594309]
[1730950219875,2.6213,190.62,190.57,2.6219]
[1730950220177,12.6555053,190.62,190.41,5.04]
[1730950220475,10.07594309,190.59,190.5,2.6228]
[1730950220666,1.2625,190.58,190.5,2.6228]
[1730950220866,1.2625,190.58,190.52,2.6226]
[1730950221271,1.2625,190.58,190.51,10.07594309]
[1730950221475,2.622,190.57,190.51,10.07594309]
[1730950221774,1.2625,190.58,190.49,10.07594309]
[1730950221974,3.8844,190.58,190.5,2.6228]
[1730950222184,3.8844,190.58,190.49,10.07594309]
[1730950223078,3.8844,190.58,190.51,2.6227]
[1730950223274,2.6227,190.52,190.45,0.20048]
[1730950223478,10.07594309,190.53,190.45,0.20048]
[1730950223775,2.6228,190.51,190.45,0.20048]
[1730950224076,1.2841,190.52,190.45,0.20048]
[1730950224569,2.6234,190.47,190.4,2.6243]
[1730950224770,10.07594309,190.42,190.28,1.6667]
[1730950224974,10.07594309,190.42,190.31,10.07594309]
[1730950225181,3.9386,190.41,190.32,2.6253]
[1730950225378,3.9386,190.41,190.31,10.07594309]
[1730950225578,10.07594309,190.39,190.28,11.29754309]
[1730950225782,10.07594309,190.36,190.22,0.4451]
[1730950225974,1.1897,190.35,190.22,10.52104309]
[1730950226174,1.1897,190.35,190.25,10.07594309]
[1730950226576,1.1897,190.35,190.27,2.626]
[1730950227182,1.1897,190.35,190.28,2.6259]
[1730950227476,1.1897,190.35,190.22,0.4451]
[1730950227682,1.1897,190.35,190.23,16.15060483]
[1730950227872,1.1897,190.35,190.28,2.6259]
[1730950228073,5.04,190.4,190.26,16.15060483]
[1730950228473,7.6643,190.4,190.31,2.6255]
[1730950229086,7.6643,190.4,190.26,16.15060483]
[1730950229087,5.04,190.4,190.26,16.15060483]
[1730950229887,5.04,190.4,190.33,2.6252]
[1730950230274,5.04,190.4,190.26,16.15060483]
[1730950230475,2.6244,190.39,190.26,16.15060483]
[1730950230681,21.19060483,190.4,190.26,16.15060483]
[1730950231982,2.6246,190.38,190.3,2.6256]
[1730950232387,2.6246,190.38,190.31,2.6255]
[1730950233274,21.19060483,190.4,190.31,2.6255]
[1730950233677,21.19060483,190.4,190.26,16.15060483]
[1730950233875,21.19060483,190.4,190.32,2.6254]
[1730950234579,21.19060483,190.4,190.26,16.15060483]
[1730950234778,5.04,190.4,190.33,2.6252]
[1730950235186,1.3051,190.44,190.3,16.15060483]
[1730950235386,1.3051,190.44,190.33,16.15060483]
[1730950235682,6.2688,190.47,190.33,16.15060483]
[1730950235889,1.2288,190.47,190.37,16.15060483]
[1730950236474,1.2288,190.47,190.41,2.624]
[1730950236682,1.2288,190.47,190.35,1.2465]
[1730950236879,1.2288,190.47,190.34,16.15060483]
[1730950236880,16.15060483,190.46,190.34,16.15060483]
[1730950237179,2.6237,190.44,190.34,16.15060483]
[1730950237381,1.2101,190.45,190.34,16.15060483]
[1730950237576,3.8337,190.45,190.34,16.15060483]
[1730950238688,1.2101,190.45,190.34,16.15060483]
[1730950239586,3.8337,190.45,190.37,2.6247]
[1730950239787,1.2101,190.45,190.34,16.15060483]
[1730950240690,1.2101,190.45,190.4,2.6243]
[1730950241087,16.15060483,190.52,190.37,16.15060483]
[1730950241285,5.04,190.51,190.37,16.15060483]
[1730950241493,3.7745,190.54,190.4,16.15060483]
[1730950242178,2.4775,190.54,190.43,16.15060483]
[1730950242383,16.15060483,190.58,190.43,16.15060483]
[1730950242693,18.77260483,190.58,190.51,2.6227]
[1730950242884,16.15060483,190.58,190.51,2.6227]
[1730950243892,2.622,190.57,190.51,2.6227]
[1730950244092,16.15060483,190.58,190.49,2.623]
[1730950245698,2.6222,190.56,190.43,16.15060483]
[1730950245993,2.6222,190.55,190.49,2.623]
[1730950246195,16.15060483,190.58,190.43,16.15060483]
[1730950247093,2.6223,190.55,190.49,2.623]
[1730950249288,16.15060483,190.58,190.49,2.623]
[1730950249289,2.6222,190.56,190.49,2.623]
[1730950249592,16.15060483,190.58,190.49,2.623]
[1730950250194,2.6224,190.54,190.43,16.15060483]
[1730950250392,2.6224,190.54,190.47,2.6232]
[1730950250894,2.6224,190.54,190.41,4.78]
[1730950251096,2.6224,190.54,190.48,2.6232]
[1730950251684,10.08600328,190.56,190.44,10.08600328]
[1730950251897,2.6227,190.52,190.44,10.08600328]
[1730950253189,10.08600328,190.56,190.44,10.08600328]
[1730950254292,2.6224,190.54,190.49,2.6229]
[1730950254497,11.38360328,190.59,190.46,10.08600328]
[1730950254992,2.6218,190.58,190.53,2.6224]
[1730950255185,11.38360328,190.59,190.46,10.08600328]
[1730950256301,2.622,190.57,190.47,10.07646635]
[1730950257996,2.6223,190.55,190.47,10.07646635]
[1730950258195,2.6223,190.55,190.44,10.07646635]
[1730950258392,2.6223,190.55,190.5,2.6229]
[1730950258793,2.6223,190.55,190.44,10.0795598]
[1730950259098,10.0795598,190.58,190.44,10.0795598]
[1730950259597,2.6228,190.51,190.44,10.0795598]
[1730950259790,14.5995598,190.55,190.41,14.5995598]
[1730950259989,2.6231,190.49,190.43,2.6239]
[1730950260595,2.6231,190.49,190.44,2.6237]
[1730950260797,1.2928,190.51,190.41,10.0795598]
[1730950260994,1.2928,190.51,190.39,1.3416]
[1730950261496,2.6234,190.47,190.42,2.624]
[1730950261701,1.2928,190.51,190.39,1.3416]
[1730950262901,2.6232,190.48,190.43,2.6239]
[1730950264001,1.2928,190.51,190.41,10.0795598]
[1730950264303,14.5995598,190.55,190.41,10.0795598]
[1730950265200,2.6227,190.52,190.45,2.6236]
[1730950265400,2.6227,190.52,190.41,10.0795598]
[1730950266300,2.6228,190.51,190.47,2.6233]
[1730950266506,14.5995598,190.55,190.47,2.6233]
[1730950266810,14.5995598,190.55,190.41,10.0795598]
[1730950267013,4.52,190.57,190.49,2.623]
[1730950267395,2.6225,190.54,190.49,2.623]
[1730950267603,4.52,190.57,190.49,2.623]
[1730950268403,2.6224,190.55,190.49,2.623]
[1730950269103,4.52,190.57,190.49,2.623]
[1730950269304,2.6224,190.54,190.49,2.623]
[1730950269505,10.0795598,190.54,190.45,2.6235]
[1730950269705,10.0795598,190.54,190.41,10.0795598]
[1730950270098,10.0795598,190.51,190.39,0.8953]
[1730950270302,10.0795598,190.48,190.34,61.63161133]
[1730950270603,7.0072,190.5,190.34,51.55205153]
[1730950270803,7.0072,190.5,190.33,1.2131]
[1730950270804,10.0795598,190.45,190.33,1.2131]
[1730950271410,20.08603299,190.47,190.36,2.6248]
[1730950272011,2.6242,190.41,190.33,1.2131]
[1730950272216,2.6242,190.41,190.34,2.6251]
[1730950272410,20.08603299,190.47,190.34,2.6251]
[1730950272808,20.08603299,190.47,190.26,0.4462]
[1730950272809,16.13481781,190.44,190.26,0.4462]
[1730950273110,2.6246,190.38,190.26,4.9662]
[1730950273310,4.52,190.43,190.3,2.6256]
[1730950273806,2.6247,190.37,190.31,2.6255]
[1730950274017,16.13481781,190.4,190.23,4.52]
[1730950274213,16.13481781,190.4,190.22,16.13481781]
[1730950274214,1.2196,190.36,190.22,20.65481781]
[1730950274417,2.6254,190.32,190.23,2.6265]
[1730950274606,4.52,190.35,190.23,2.6265]
[1730950274607,8.51664808,190.35,190.23,2.6265]
[1730950274913,8.51664808,190.35,190.16,16.13481781]
[1730950274914,16.13481781,190.33,190.2,1.2131]
[1730950275108,16.13481781,190.33,190.16,16.13481781]
[1730950275314,16.13481781,190.33,190.16,20.65481781]
[1730950275808,16.13481781,190.33,190.22,2.6268]
[1730950276009,16.13481781,190.33,190.16,20.65481781]
[1730950276214,5.8277,190.35,190.2,16.13481781]
[1730950276514,5.8277,190.35,190.26,2.6261]
[1730950276711,5.8277,190.35,190.17,16.13481781]
[1730950276908,2.6255,190.32,190.17,16.13481781]
[1730950277115,5.8277,190.35,190.17,16.13481781]
[1730950277417,2.6259,190.29,190.22,2.6268]
[1730950277713,16.13481781,190.33,190.22,2.6268]
[1730950278107,2.6257,190.3,190.22,2.6268]
[1730950278306,16.13481781,190.33,190.2,2.627]
[1730950279219,2.6263,190.26,190.18,2.6272]
[1730950279512,16.13481781,190.33,190.16,4.52]
[1730950281218,5.8277,190.35,190.19,16.13481781]
[1730950282812,16.13481781,190.33,190.17,4.54]
[1730950284416,16.13481781,190.33,190.2,2.627]
[1730950284617,16.13481781,190.33,190.17,4.54]
[1730950284916,5.8277,190.35,190.17,20.67481781]
[1730950285719,2.6255,190.32,190.17,20.67481781]
[1730950285920,5.8277,190.35,190.17,20.67481781]
[1730950286418,2.6255,190.32,190.25,2.6262]
[1730950286614,5.8277,190.35,190.17,20.67481781]
[1730950286826,2.6258,190.3,190.23,2.6265]
[1730950287526,5.8277,190.35,190.24,2.6264]
[1730950287716,2.6258,190.29,190.24,2.6264]
[1730950288519,16.13481781,190.33,190.17,4.54]
[1730950288914,16.13481781,190.33,190.21,2.6269]
[1730950290124,16.13481781,190.33,190.15,5.5332]
[1730950290323,2.6258,190.29,190.15,5.5332]
[1730950290515,2.6258,190.29,190.22,2.6266]
[1730950290828,2.6258,190.29,190.15,5.5332]
[1730950291021,16.13481781,190.33,190.15,5.5332]
[1730950291022,2.626,190.28,190.15,5.5332]
[1730950291623,2.6264,190.25,190.2,2.6271]
[1730950292017,1.2262,190.3,190.2,2.6271]
[1730950292323,1.2262,190.3,190.15,5.5332]
[1730950292324,2.6259,190.29,190.17,16.13481781]
[1730950293520,1.2262,190.3,190.22,2.6267]
[1730950294619,2.6262,190.27,190.22,2.6267]
[1730950294820,1.2262,190.3,190.23,2.6265]
[1730950295029,1.2262,190.3,190.17,16.13481781]
[1730950295418,2.6263,190.26,190.22,2.6268]
[1730950295723,1.2262,190.3,190.22,2.6268]
[1730950296817,2.6261,190.27,190.22,2.6268]
[1730950297022,1.2262,190.3,190.22,2.6268]
[1730950298119,2.6264,190.25,190.15,1.2132]
[1730950298518,17.36101781,190.3,190.15,1.2132]
[1730950299325,10.09340038,190.28,190.15,1.2132]
[1730950299536,10.09340038,190.28,190.14,10.09340038]
[1730950299537,1.2045,190.27,190.14,10.09340038]
[1730950299920,1.2045,190.27,190.17,2.6275]
[1730950299921,2.6267,190.23,190.17,2.6275]
[1730950300118,1.2294,190.26,190.11,10.09340038]
[1730950300319,10.09340038,190.24,190.11,10.09340038]
[1730950300520,14.41340038,190.24,190.15,2.6277]
[1730950301331,2.627,190.21,190.14,2.6278]
[1730950301724,2.627,190.21,190.07,0.8974]
[1730950301725,10.09340038,190.2,189.96,227.0]
[1730950301923,10.09340038,190.2,188.95,252.42]
[1730950301924,10.09340038,190.17,190.04,10.09340038]
[1730950302233,10.09340038,190.2,190.06,11.40060038]
[1730950302435,12.72060038,190.2,190.12,2.6281]
[1730950302636,12.72060038,190.2,190.06,11.40060038]
[1730950302930,12.72060038,190.2,190.07,0.8974]
[1730950303135,2.627,190.21,190.13,2.6279]
[1730950303335,2.627,190.21,190.07,17.05443524]
[1730950303634,4.32,190.24,190.07,17.05443524]
[1730950304230,2.6265,190.24,190.16,2.6276]
[1730950305037,2.6265,190.24,190.17,2.6275]
[1730950305535,2.6265,190.24,190.18,2.6273]
[1730950305924,1.2294,190.26,190.18,2.6273]
[1730950306934,2.6266,190.24,190.18,2.6273]
[1730950307326,2.6264,190.25,190.11,16.15703524]
[1730950307532,1.2294,190.26,190.11,16.15703524]
[1730950307837,16.15703524,190.24,190.09,4.32]